[Event "26th OIBM 2023"]
[Site "Gmund am Tegernsee"]
[Date "2023.11.04"]
[Round "8.6"]
[White "Zawadzka, Jolanta"]
[Black "Petrov, Nikita"]
[Result "0-1"]
[ECO "B60"]
[WhiteElo "2342"]
[BlackElo "2551"]
[Annotator "TA"]
[PlyCount "62"]
[EventDate "2023.10.04"]
[EventType "swiss"]
[EventCountry "GER"]
[SourceTitle "playchess.com"]
[Source "ChessBase"]
[SourceQuality "1"]
[TimeControl "40/5400+30:1800+30"]

{[%evp 14,62,45,36,51,29,43,32,29,0,0,0,14,-3,0,-10,30,10,16,-25,-16,-29,-26,-258,-232,-251,-243,-258,-281,-271,-277,-271,-272,-287,-279,-275,-279,-279,-272,-246,-231,-522,-524,-623,-608,-708,-696,-1088,-1046,-29986,-29987]} 1. e4 {[%emt 0:02:03]} c5 {[%emt 0:00:07]} 2. Nf3 {[%emt 0:00:05]} Nc6 {[%emt 0:00:06]} 3. d4 {[%emt 0:00:07]} cxd4 {[%emt 0:00:07]} 4. Nxd4 {[%emt 0:00:04]} Nf6 {[%emt 0:00:13]} 5. Nc3 {[%emt 0:00:06]} d6 {[%emt 0:00:11]} 6. Bg5 {[%emt 0:00:08]} Bd7 {[%emt 0:00:23]} 7. Bxf6 {[%emt 0:05:14]} gxf6 {[%emt 0:00:19]} 8. Be2 {[%emt 0:00:19]} e6 {[%emt 0:09:26] B60: Sicilian: Richter-Rauzer: Unusual Black 6th moves and 6...Bd7 without 7 Qd2.} 9. O-O {[%emt 0:02:53]} h5 {[%emt 0:07:40] [#]} 10. Nxc6 $146 {[%emt 0:08:14]} (10. Bxh5 $2 {perishes.} Nxd4 11. Bxf7+ Kxf7 $19) ({Predecessor:} 10. Ndb5 Qb8 11. a4 a6 12. Na3 Qc7 13. Qd2 f5 14. Nc4 Na5 15. Qd4 Rh6 16. Nb6 {1-0 Gallagher,J (2470)-Dubeck,M (2320) San Bernardino op 1994}) 10... bxc6 {[%emt 0:11:20] White is slightly better.} 11. Kh1 {[%emt 0:04:00]} h4 {[%emt 0:03:35]} 12. h3 {[%emt 0:02:05]} Rb8 {[%emt 0:08:24] Black is weak on the light squares} 13. b3 {[%emt 0:03:46]} d5 {[%emt 0:04:11][%cal Bd6d5,Bd5e4][%mdl 32]} 14. Qd3 {[%emt 0:06:20]} Bd6 {[%emt 0:18:36]} 15. Rad1 {[%emt 0:07:37]} Qc7 {[%emt 0:03:22]} 16. Bg4 {[%emt 0:05:43][%cal Of2f4]} Rd8 {[%emt 0:08:14]} 17. Ne2 {[%emt 0:07:21]} Be7 {[%emt 0:00:46][%cal Bd6e7,Be7c5,Bc5d4][%mdl 32]} 18. c4 $2 {[%emt 0:16:37] [#] White does not recover from this.} (18. Bf3 $11 {and White is okay.}) 18... dxe4 $1 $19 {[%emt 0:01:38]} 19. Qc3 {[%emt 0:01:22]} Qe5 {[%emt 0:00:50]} 20. Qxe5 {[%emt 0:04:33]} fxe5 {[%emt 0:00:07]} 21. Nc3 {[%emt 0:00:03]} f5 {[%emt 0:00:22]} 22. Be2 {[%emt 0:00:03]} Bc5 {[%emt 0:02:49]} 23. Rc1 {[%emt 0:02:22]} Ke7 {[%emt 0:00:44]} 24. Na4 {[%emt 0:02:10]} Bd4 {[%emt 0:01:07]} 25. c5 {[%emt 0:00:05]} Rhg8 {[%emt 0:01:22]} 26. Rc2 {[%emt 0:00:15]} Rg7 {[%emt 0:01:09]} 27. Ba6 $2 {[%emt 0:01:24]} (27. Nb2 {was necessary.}) 27... Rdg8 {[%emt 0:00:33]} 28. Rg1 {[%emt 0:00:38]} Be8 {[%emt 0:01:36][%cal Bd7e8,Be8h5,Bh5f3][%mdl 32]} 29. b4 {[%emt 0:01:06]} Bh5 {[%emt 0:00:37][%cal Oh5f3] Hoping for ...Bf3!} 30. Kh2 {[%emt 0:04:43] [#]} Bf3 $1 {[%emt 0:02:10][%cal Rg7g2][%mdl 576] Pin} 31. g3 {[%emt 0:00:05] [#]} (31. Bf1 Bd1) 31... Bxf2 $1 {[%emt 0:00:45][%mdl 576] Remove Defender, Decoy.   Weighted Error Value: White=0.83/Black=0.05 (flawless)} 0-1

[Event "26th OIBM 2023"]
[Site "Gmund am Tegernsee"]
[Date "2023.11.04"]
[Round "8.7"]
[White "Imnadze, Nato"]
[Black "Van Foreest, Lucas"]
[Result "0-1"]
[ECO "A45"]
[WhiteElo "2207"]
[BlackElo "2540"]
[Annotator "TA"]
[PlyCount "114"]
[EventDate "2023.10.04"]
[EventType "swiss"]
[EventCountry "GER"]
[SourceTitle "playchess.com"]
[Source "ChessBase"]
[SourceQuality "1"]
[TimeControl "40/5400+30:1800+30"]

{[%evp 9,114,0,9,16,18,16,8,0,0,0,57,-64,-67,-76,-79,-72,-65,-94,-104,-106,-109,-119,-119,-126,-119,-112,-105,-155,-105,-206,-206,-206,-190,-181,-170,-179,-178,-180,-169,-232,-231,-244,-231,-309,-310,-327,-327,-325,-303,-318,-318,-401,-393,-412,-394,-461,-481,-563,-500,-544,-538,-540,-525,-531,-539,-538,-535,-518,-529,-566,-558,-566,-560,-560,-572,-556,-560,-560,-560,-538,-530,-793,-771,-949,-914,-829,-649,-1015,-994,-1348,-1404,-1377,-1347,-2833,-2849,-2622,-2542,-1782,-1742,-29981,-29981,-29981,-29982,-29995,-471,-29992,-29993]} 1. d4 {[%emt 0:00:03]} Nf6 {[%emt 0:01:21]} 2. Bf4 {[%emt 0:00:24]} c5 {[%emt 0:00:40]} 3. e3 {[%emt 0:00:28]} Qb6 {[%emt 0:00:43]} 4. Nc3 {[%emt 0:04:53]} e6 {[%emt 0:00:36]} 5. a3 {[%emt 0:06:05]} d5 {[%emt 0:00:38]} 6. Nb5 {[%emt 0:08:06] A45: Trompowsky Attack.} Na6 {[%emt 0:00:18] Prevents Nc7+.} 7. a4 {[%emt 0:03:22]} Be7 {[%emt 0:09:42]} 8. c3 {[%emt 0:02:25] The position is equal.} O-O {[%emt 0:01:31] [#]} 9. Nf3 $146 {[%emt 0:00:36]} ({Predecessor:} 9. h3 Bd7 10. a5 Qd8 11. Nf3 c4 12. Na3 b5 13. Be2 b4 14. Nb1 Ne4 15. Nbd2 Nxd2 16. Nxd2 bxc3 17. bxc3 {½-½ Juegel,M (2204)-Kraemer,M (2233) BL2-West 1819 2018 (8.8)}) 9... Nh5 {[%emt 0:21:36] [#]} (9... Bd7 $11) 10. Bc7 {[%emt 0:06:41]} Nxc7 $15 {[%emt 0:01:22]} 11. a5 {[%emt 0:00:07] [#]} Qxb5 {[%emt 0:00:35]} (11... Qc6 $2 12. Ne5 Nxb5 13. Nxc6 bxc6 14. Qxh5 $18) 12. Bxb5 {[%emt 0:00:06]} Nxb5 {[%emt 0:00:03]} 13. Ne5 {[%emt 0:01:38] White is now going downhill.} Nf6 {[%emt 0:00:28]} 14. O-O {[%emt 0:00:06]} a6 {[%emt 0:06:34]} 15. h4 {[%emt 0:07:09]} Bd7 {[%emt 0:02:41]} 16. h5 {[%emt 0:00:33][%cal Oh5h6]} Rad8 {[%emt 0:00:48]} 17. Qe2 {[%emt 0:09:55]} cxd4 {[%emt 0:04:58]} 18. exd4 {[%emt 0:02:44] [#]} ({Better is} 18. Nxd7 Rxd7 19. cxd4) 18... Nd6 {[%emt 0:00:34]} (18... Be8 $142 $1 19. Qf3 Nd6) 19. Rfe1 {[%emt 0:02:36]} (19. Nxd7 $17 Rxd7 20. Ra4) 19... Bb5 $19 {[%emt 0:01:45]} 20. Qf3 {[%emt 0:05:21]} Nc4 {[%emt 0:00:52]} 21. Nxc4 {[%emt 0:08:48]} Bxc4 {[%emt 0:03:00]} 22. b3 {[%emt 0:07:03]} Bb5 {[%emt 0:00:19]} ({Worse is} 22... Bxb3 23. Rab1 Bc4 24. Rxb7 $17) 23. h6 {[%emt 0:01:07]} gxh6 {[%emt 0:01:50]} 24. Qh3 {[%emt 0:00:58]} (24. Re3 {might work better.}) 24... h5 {[%emt 0:00:32]} 25. Re5 {[%emt 0:01:33]} Kh8 {[%emt 0:00:26]} 26. Rae1 {[%emt 0:00:25]} Rg8 {[%emt 0:00:12] Prevents Rg5.} 27. R5e3 {[%emt 0:10:42]} Rg6 {[%emt 0:02:47]} 28. Rg3 {[%emt 0:00:22]} Kg7 {[%emt 0:02:01]} 29. Qh4 {[%emt 0:01:26]} Rd7 {[%emt 0:00:53]} 30. Rxg6+ {[%emt 0:02:26]} hxg6 {[%emt 0:00:04]} ({Weaker is} 30... Kxg6 31. Re5 h6 32. Qg3+ Kh7 33. Qf3 $17) 31. Qg3 {[%emt 0:01:49]} Bd8 {[%emt 0:00:15]} 32. Re3 {[%emt 0:02:25]} Bxa5 {[%emt 0:01:02]} 33. Rf3 {[%emt 0:00:02]} Bc7 {[%emt 0:00:16]} 34. Qg5 {[%emt 0:00:27]} Ne4 {[%emt 0:00:30]} 35. Qc1 {[%emt 0:00:18]} Be2 {[%emt 0:01:23]} 36. Rh3 {[%emt 0:00:06]} Bg4 {[%emt 0:00:55]} 37. Rd3 {[%emt 0:00:03]} Bf5 {[%emt 0:00:31][%cal Oe4f2]} 38. Rd1 {[%emt 0:01:50]} Bd8 {[%emt 0:00:54]} 39. c4 {[%emt 0:02:45]} Bh4 {[%emt 0:00:12]} 40. f3 {[%emt 0:01:25]} Bg5 {[%emt 0:00:10]} 41. Qb2 {[%emt 0:03:56]} Be3+ {[%emt 0:00:13]} 42. Kh2 {[%emt 0:00:50]} Bf4+ {[%emt 0:00:05]} 43. Kg1 {[%emt 0:00:16]} Ng3 {[%emt 0:00:09]} 44. Kf2 {[%emt 0:01:44]} h4 {[%emt 0:00:11]} 45. c5 {[%emt 0:03:28]} Rd8 {[%emt 0:00:07]} 46. Ke1 {[%emt 0:06:05]} Rh8 {[%emt 0:01:19] And now ...h3 would win.} 47. Rd2 {[%emt 0:03:23]} Re8 {[%emt 0:02:25][%cal Oe6e5] White must now prevent ...e5!} 48. Kf2 {[%emt 0:02:13]} e5 {[%emt 0:01:55]} 49. Rd1 {[%emt 0:02:52]} e4 {[%emt 0:00:22]} 50. fxe4 {[%emt 0:01:29]} Bxe4 {[%emt 0:00:05]} 51. Re1 {[%emt 0:01:23]} Re6 {[%emt 0:01:37] aiming for ...Rf6.} 52. Kg1 {[%emt 0:01:17]} Rf6 {[%emt 0:00:07][%cal Of4e3] ( -> ...Be3+!)} 53. Qc3 {[%emt 0:00:18] Dodges Be3+} g5 {[%emt 0:05:30][%cal Bg6g5,Bg5g4][%mdl 32]} 54. b4 {[%emt 0:00:37]} g4 {[%emt 0:00:39]} 55. Qa1 {[%emt 0:03:58]} Bd2 {[%emt 0:00:11][%csl LRb4,LRe1]} 56. Rd1 {[%emt 0:01:41]} Be3+ {[%emt 0:00:06]} 57. Kh2 {[%emt 0:00:23]} Rf2 {[%emt 0:00:16] Weighted Error Value: White=0.25 (precise) /Black=0.09 (flawless)} 0-1

[Event "26th OIBM 2023"]
[Site "Gmund am Tegernsee"]
[Date "2023.11.04"]
[Round "8.8"]
[White "Vetoshko, Volodymyr"]
[Black "Nguyen, Alex Dac-Vuong"]
[Result "1-0"]
[ECO "A30"]
[WhiteElo "2499"]
[BlackElo "2333"]
[Annotator "ChessBase"]
[PlyCount "65"]
[EventDate "2023.10.04"]
[EventType "swiss"]
[EventCountry "GER"]
[SourceTitle "playchess.com"]
[Source "ChessBase"]
[SourceQuality "1"]
[TimeControl "40/5400+30:1800+30"]

1. c4 {[%emt 0:00:11]} Nf6 {[%emt 0:00:24]} 2. Nf3 {[%emt 0:00:27]} c5 {[%emt 0:00:05]} 3. g3 {[%emt 0:00:30]} d5 {[%emt 0:00:18]} 4. cxd5 {[%emt 0:00:15]} Nxd5 {[%emt 0:00:06]} 5. Bg2 {[%emt 0:00:27]} Nc6 {[%emt 0:00:06]} 6. d4 {[%emt 0:00:53]} cxd4 {[%emt 0:00:09]} 7. Nxd4 {[%emt 0:00:06]} Ndb4 {[%emt 0:00:04]} 8. Nxc6 {[%emt 0:00:27]} Qxd1+ {[%emt 0:00:05]} 9. Kxd1 {[%emt 0:00:04]} Nxc6 {[%emt 0:00:06]} 10. Bxc6+ {[%emt 0:00:14]} bxc6 {[%emt 0:00:04]} 11. Be3 {[%emt 0:00:07]} e5 {[%emt 0:03:45]} 12. f3 {[%emt 0:03:18]} f6 {[%emt 0:05:52]} 13. Ke1 {[%emt 0:02:53]} h5 {[%emt 0:11:04]} 14. h4 {[%emt 0:10:29]} Be7 {[%emt 0:12:41]} 15. Kf2 {[%emt 0:04:48]} g5 {[%emt 0:03:10]} 16. hxg5 {[%emt 0:13:42]} fxg5 {[%emt 0:00:05]} 17. g4 {[%emt 0:06:59]} Rb8 {[%emt 0:23:07]} 18. b3 {[%emt 0:12:20]} Bf6 {[%emt 0:01:50]} 19. Nd2 {[%emt 0:01:45]} hxg4 {[%emt 0:06:51]} 20. Ne4 {[%emt 0:06:41]} O-O {[%emt 0:02:55]} 21. Bxa7 {[%emt 0:06:49]} Rb7 {[%emt 0:00:57]} 22. Bc5 {[%emt 0:00:59]} Be7 {[%emt 0:00:14]} 23. Bxe7 {[%emt 0:04:46]} Rxe7 {[%emt 0:00:25]} 24. Rh5 {[%emt 0:03:54]} Rg7 {[%emt 0:09:09]} 25. Rah1 {[%emt 0:01:44]} Kf7 {[%emt 0:02:35]} 26. Nxg5+ {[%emt 0:03:00]} Ke8 {[%emt 0:01:35]} 27. Ne4 {[%emt 0:01:35]} gxf3 {[%emt 0:00:15]} 28. Rxe5+ {[%emt 0:01:41]} Kd8 {[%emt 0:00:03]} 29. exf3 {[%emt 0:00:46]} Bg4 {[%emt 0:01:53]} 30. Ng5 {[%emt 0:02:20]} Kc8 {[%emt 0:02:26]} 31. Rh4 {[%emt 0:02:08]} Bf5 {[%emt 0:00:33]} 32. Ne6 {[%emt 0:03:18]} Bxe6 {[%emt 0:00:33]} 33. Rxe6 {[%emt 0:00:05]} 1-0

[Event "26th OIBM 2023"]
[Site "Gmund am Tegernsee"]
[Date "2023.11.04"]
[Round "8.9"]
[White "Ciolek, Andreas"]
[Black "Kargin, Arseny"]
[Result "0-1"]
[ECO "D11"]
[WhiteElo "2215"]
[BlackElo "2391"]
[Annotator "ChessBase"]
[PlyCount "82"]
[EventDate "2023.10.04"]
[EventType "swiss"]
[EventCountry "GER"]
[SourceTitle "playchess.com"]
[Source "ChessBase"]
[SourceQuality "1"]
[TimeControl "40/5400+30:1800+30"]

1. d4 {[%emt 0:00:06]} d5 {[%emt 0:00:14]} 2. c4 {[%emt 0:00:19]} c6 {[%emt 0:00:05]} 3. Nf3 {[%emt 0:00:34]} Nf6 {[%emt 0:00:07]} 4. Qc2 {[%emt 0:00:40]} dxc4 {[%emt 0:00:22]} 5. e4 {[%emt 0:00:26]} b5 {[%emt 0:00:45]} 6. b3 {[%emt 0:00:15]} cxb3 {[%emt 0:00:51]} 7. axb3 {[%emt 0:00:12]} e6 {[%emt 0:06:17]} 8. Bd3 {[%emt 0:00:28]} Be7 {[%emt 0:10:47]} 9. O-O {[%emt 0:00:45]} h6 {[%emt 0:03:48]} 10. Qe2 {[%emt 0:07:20]} Nbd7 {[%emt 0:06:40]} 11. Nc3 {[%emt 0:04:09]} Bb7 {[%emt 0:06:07]} 12. e5 {[%emt 0:04:22]} Nd5 {[%emt 0:00:27]} 13. Nxd5 {[%emt 0:01:11]} cxd5 {[%emt 0:02:14]} 14. Bxb5 {[%emt 0:03:49]} a6 {[%emt 0:09:49]} 15. Bd3 {[%emt 0:01:58]} Qb6 {[%emt 0:08:16]} 16. Be3 {[%emt 0:15:13]} a5 {[%emt 0:02:24]} 17. Rfc1 {[%emt 0:04:54]} O-O {[%emt 0:03:22]} 18. Ne1 {[%emt 0:09:32]} Ba6 {[%emt 0:14:12]} 19. Qg4 {[%emt 0:03:34]} Bxd3 {[%emt 0:04:32]} 20. Nxd3 {[%emt 0:00:12]} Kh7 {[%emt 0:00:05]} 21. Nf4 {[%emt 0:01:14]} Rfc8 {[%emt 0:00:29]} 22. Rxc8 {[%emt 0:06:01]} Rxc8 {[%emt 0:01:22]} 23. Nxd5 {[%emt 0:00:26]} Qd8 {[%emt 0:01:08]} 24. Nxe7 {[%emt 0:05:30]} Qxe7 {[%emt 0:00:04]} 25. Rxa5 {[%emt 0:02:03]} Qb4 {[%emt 0:01:14]} 26. Ra1 {[%emt 0:01:03]} Nxe5 {[%emt 0:08:37]} 27. Qf4 {[%emt 0:03:04]} Ng6 {[%emt 0:00:22]} 28. Qxf7 {[%emt 0:00:36]} Qxb3 {[%emt 0:01:52]} 29. h3 {[%emt 0:05:19]} Rf8 {[%emt 0:00:01]} 30. Qd7 {[%emt 0:00:53]} Nh4 {[%emt 0:00:16]} 31. Qd6 {[%emt 0:07:27]} Rf6 {[%emt 0:00:49]} 32. Qc6 {[%emt 0:03:16]} Rg6 {[%emt 0:01:09]} 33. g4 {[%emt 0:02:06]} e5 {[%emt 0:02:00]} 34. Qa4 {[%emt 0:04:38]} Qd5 {[%emt 0:00:28]} 35. Kf1 {[%emt 0:00:40]} exd4 {[%emt 0:02:15]} 36. Bxd4 {[%emt 0:00:52]} Qg2+ {[%emt 0:01:28]} 37. Ke2 {[%emt 0:00:55]} Qxh3 {[%emt 0:01:05]} 38. Be3 {[%emt 0:00:37]} Qf3+ {[%emt 0:00:49]} 39. Kd2 {[%emt 0:02:02]} Qd5+ {[%emt 0:00:35]} 40. Ke1 {[%emt 0:00:59]} Qd3 {[%emt 0:02:11]} 41. Qa8 {[%emt 0:01:18]} Rxg4 {[%emt 0:00:40]} 0-1

[Event "26th OIBM 2023"]
[Site "Gmund am Tegernsee"]
[Date "2023.11.04"]
[Round "8.10"]
[White "Bauer, Christian"]
[Black "Ammon, Tobias"]
[Result "1-0"]
[ECO "A28"]
[WhiteElo "2552"]
[BlackElo "2145"]
[Annotator "TA"]
[PlyCount "65"]
[EventDate "2023.10.04"]
[EventType "swiss"]
[EventCountry "GER"]
[SourceTitle "playchess.com"]
[Source "ChessBase"]
[SourceQuality "1"]
[TimeControl "40/5400+30:1800+30"]

{[%evp 15,65,-14,0,-14,-17,-13,-6,-10,0,-9,0,0,0,-2,6,0,0,-8,10,0,49,26,52,27,60,60,84,56,65,45,75,68,127,119,114,104,198,141,187,62,221,208,392,393,706,697,1448,1403,29995,29996,29996,29997]} 1. c4 {[%emt 0:00:42]} e5 {[%emt 0:00:13]} 2. Nc3 {[%emt 0:00:55]} Nf6 {[%emt 0:00:06]} 3. e3 {[%emt 0:04:59]} Bb4 {[%emt 0:08:32]} 4. Qb3 {[%emt 0:03:13]} Bxc3 {[%emt 0:00:52]} 5. Qxc3 {[%emt 0:00:39]} Qe7 {[%emt 0:03:03]} 6. a3 {[%emt 0:04:59]} a5 {[%emt 0:03:55]} 7. Nf3 {[%emt 0:04:25]} Nc6 {[%emt 0:00:59]} 8. d3 {[%emt 0:00:08]} O-O {[%emt 0:02:00]} 9. Be2 {[%emt 0:11:49][%cal Bf1e2,Be2f3,Bf3g4,Bg4d1][%mdl 32] was the old line (9.b3). A28: English Opening: Four Knights Variation.} a4 {[%emt 0:08:15]} 10. O-O {[%emt 0:08:35] [#]} Re8 $146 {[%emt 0:02:39]} ({Predecessor:} 10... b6 11. Nd2 Bb7 12. Qc2 d6 13. Nb1 Nd7 14. Nc3 Nc5 15. Rb1 Qg5 16. Nd5 Rae8 {½-½ Vojinovic,G (2454)-Bogosavljevic,B (2552) SRB-chT Kragujevac 2013 (1.4)}) 11. e4 {[%emt 0:05:37] The position is equal.} d6 {[%emt 0:05:50]} 12. Be3 {[%emt 0:05:08]} Bg4 {[%emt 0:06:18]} 13. h3 {[%emt 0:03:21]} Bxf3 {[%emt 0:00:17]} 14. Bxf3 {[%emt 0:00:01]} Nd7 {[%emt 0:02:57]} 15. Bg4 {[%emt 0:00:12]} Nc5 {[%emt 0:02:14]} 16. f4 {[%emt 0:00:20]} Nb3 {[%emt 0:07:54] Excellent horsemanship.} 17. Rae1 {[%emt 0:02:26]} Nbd4 {[%emt 0:01:08]} (17... f6 $11) 18. f5 {[%emt 0:05:58][%cal Of5f6]} f6 {[%emt 0:01:14]} 19. Rf2 {[%emt 0:01:46]} Kh8 {[%emt 0:05:37]} 20. Bd1 {[%emt 0:02:03]} Nb8 {[%emt 0:06:14]} 21. g4 {[%emt 0:04:45][%cal Bg2g4,Bg4g5,Bg5g6][%mdl 32]} c5 {[%emt 0:01:33]} 22. h4 {[%emt 0:00:54]} Nd7 {[%emt 0:05:36]} 23. g5 {[%emt 0:00:01]} Qf8 {[%emt 0:02:46]} ({Black should play} 23... b5 $14) 24. Kh2 $16 {[%emt 0:00:18]} b5 {[%emt 0:02:42]} 25. Rg1 {[%emt 0:04:40]} Reb8 {[%emt 0:03:33]} (25... bxc4 $16 26. Qxc4 Rec8) 26. cxb5 {[%emt 0:04:39]} (26. g6 $18) 26... Rxb5 {[%emt 0:02:51] [#]} (26... Ra7 $16) 27. Rfg2 {[%emt 0:02:12]} (27. g6 $1 $18) 27... Ra7 $2 {[%emt 0:03:03] [#] This move loses the game for Black.} (27... d5 $14) 28. g6 $1 $18 {[%emt 0:06:45]} Qb8 $2 {[%emt 0:05:52]} (28... d5 {was called for.} 29. gxh7 (29. exd5 Nb6 $17) 29... Kxh7) 29. h5 {[%emt 0:08:16][%cal Bh4h5,Bh5g6][%mdl 32]} ({Less strong is} 29. gxh7 Nf8 $16) 29... hxg6 $2 {[%emt 0:03:40]} (29... Nb6 30. h6 Nxf5) 30. hxg6 {[%emt 0:00:50]} Rab7 {[%emt 0:02:17]} 31. Kg3 {[%emt 0:01:30] Rh1+ would kill now.} Rxb2 {[%emt 0:00:28]} 32. Rh1+ {[%emt 0:00:11]} Kg8 {[%emt 0:00:06]} 33. Qc4+ {[%emt 0:04:43] Weighted Error Value: White=0.15 (very precise) /Black=0.69} 1-0

[Event "26th OIBM 2023"]
[Site "Gmund am Tegernsee"]
[Date "2023.11.04"]
[Round "8.11"]
[White "Maier, Alexander"]
[Black "Kulaots, Kaido"]
[Result "0-1"]
[ECO "B04"]
[WhiteElo "2277"]
[BlackElo "2508"]
[Annotator "ChessBase"]
[PlyCount "66"]
[EventDate "2023.10.04"]
[EventType "swiss"]
[EventCountry "GER"]
[SourceTitle "playchess.com"]
[Source "ChessBase"]
[SourceQuality "1"]
[TimeControl "40/5400+30:1800+30"]

1. e4 {[%emt 0:00:49]} g6 {[%emt 0:00:17]} 2. d4 {[%emt 0:01:28]} Bg7 {[%emt 0:00:27]} 3. Nf3 {[%emt 0:01:21]} d6 {[%emt 0:01:09]} 4. Bc4 {[%emt 0:01:01]} Nf6 {[%emt 0:01:00]} 5. Qe2 {[%emt 0:00:06]} O-O {[%emt 0:00:32]} 6. e5 {[%emt 0:00:22]} dxe5 {[%emt 0:01:43]} 7. dxe5 {[%emt 0:00:06]} Nd5 {[%emt 0:00:04]} 8. h3 {[%emt 0:00:26]} c6 {[%emt 0:10:46]} 9. O-O {[%emt 0:00:59]} Qc7 {[%emt 0:06:43]} 10. Bb3 {[%emt 0:12:45]} Be6 {[%emt 0:02:32]} 11. c4 {[%emt 0:08:55]} Nb6 {[%emt 0:00:07]} 12. Bg5 {[%emt 0:00:59]} a5 {[%emt 0:10:53]} 13. Nbd2 {[%emt 0:05:31]} Na6 {[%emt 0:01:38]} 14. Bc2 {[%emt 1:02:42]} Nb4 {[%emt 0:08:41]} 15. Bb1 {[%emt 0:00:00]} Rfe8 {[%emt 0:02:49]} 16. Bf4 {[%emt 0:00:00]} Nd7 {[%emt 0:09:49]} 17. Re1 {[%emt 0:00:00]} a4 {[%emt 0:01:11]} 18. Ne4 {[%emt 0:00:00]} Nxe5 {[%emt 0:14:54]} 19. Bxe5 {[%emt 0:00:00]} Bxe5 {[%emt 0:00:08]} 20. Neg5 {[%emt 0:00:00]} Bf6 {[%emt 0:00:11]} 21. Nxe6 {[%emt 0:00:00]} fxe6 {[%emt 0:00:04]} 22. Bxg6 {[%emt 0:00:00]} hxg6 {[%emt 0:00:42]} 23. Qd2 {[%emt 0:00:00]} Qd6 {[%emt 0:02:44]} 24. Qh6 {[%emt 0:00:00]} Bg7 {[%emt 0:00:13]} 25. Qh4 {[%emt 0:00:00]} Bf6 {[%emt 0:11:35]} 26. Qh6 {[%emt 0:00:00]} Qd3 {[%emt 0:00:05]} 27. Re3 {[%emt 0:00:00]} Qf5 {[%emt 0:02:13]} 28. g4 {[%emt 0:00:00]} Bg7 {[%emt 0:00:18]} 29. Qxg7+ {[%emt 0:00:17]} Kxg7 {[%emt 0:00:05]} 30. gxf5 {[%emt 0:00:02]} Nc2 {[%emt 0:04:50]} 31. Rxe6 {[%emt 0:01:38]} Nxa1 {[%emt 0:00:08]} 32. Rxg6+ {[%emt 0:00:09]} Kf8 {[%emt 0:00:15]} 33. Ng5 {[%emt 0:01:44]} Rec8 {[%emt 0:00:56]} 0-1

[Event "26th OIBM 2023"]
[Site "Gmund am Tegernsee"]
[Date "2023.11.04"]
[Round "8.12"]
[White "Gallego Alcaraz, Andres Felipe"]
[Black "Hoy, Bernd"]
[Result "1/2-1/2"]
[ECO "A41"]
[WhiteElo "2495"]
[BlackElo "2251"]
[Annotator "ChessBase"]
[PlyCount "90"]
[EventDate "2023.10.04"]
[EventType "swiss"]
[EventCountry "GER"]
[SourceTitle "playchess.com"]
[Source "ChessBase"]
[SourceQuality "1"]
[TimeControl "40/5400+30:1800+30"]

1. d4 {[%emt 0:00:04]} g6 {[%emt 0:00:08]} 2. c4 {[%emt 0:00:15]} Bg7 {[%emt 0:00:09]} 3. Nf3 {[%emt 0:00:07]} d6 {[%emt 0:00:06]} 4. Nc3 {[%emt 0:00:13]} Bg4 {[%emt 0:00:18]} 5. e3 {[%emt 0:00:16]} Bxf3 {[%emt 0:00:17]} 6. Qxf3 {[%emt 0:00:09]} c6 {[%emt 0:00:08]} 7. g3 {[%emt 0:13:01]} h5 {[%emt 0:01:30]} 8. Bg2 {[%emt 0:01:23]} Nd7 {[%emt 0:00:28]} 9. O-O {[%emt 0:00:47]} Ngf6 {[%emt 0:00:15]} 10. b4 {[%emt 0:00:35]} Rb8 {[%emt 0:00:34]} 11. Rb1 {[%emt 0:01:08]} O-O {[%emt 0:00:39]} 12. Rd1 {[%emt 0:00:36]} Qc7 {[%emt 0:01:23]} 13. Qe2 {[%emt 0:03:56]} e5 {[%emt 0:04:05]} 14. b5 {[%emt 0:08:27]} c5 {[%emt 0:02:33]} 15. dxe5 {[%emt 0:21:55]} dxe5 {[%emt 0:00:42]} 16. e4 {[%emt 0:00:22]} b6 {[%emt 0:02:57]} 17. Bh3 {[%emt 0:01:00]} Rfd8 {[%emt 0:00:41]} 18. Bg5 {[%emt 0:00:18]} Re8 {[%emt 0:02:47]} 19. Nd5 {[%emt 0:19:18]} Nxd5 {[%emt 0:00:11]} 20. Rxd5 {[%emt 0:00:08]} Nf8 {[%emt 0:00:23]} 21. Rbd1 {[%emt 0:00:28]} a6 {[%emt 0:02:07]} 22. Qf3 {[%emt 0:04:22]} Nh7 {[%emt 0:04:23]} 23. Bh4 {[%emt 0:00:21]} Rf8 {[%emt 0:00:30]} 24. Rd7 {[%emt 0:00:54]} Qc8 {[%emt 0:00:04]} 25. Be7 {[%emt 0:01:49]} axb5 {[%emt 0:01:37]} 26. cxb5 {[%emt 0:00:44]} Rb7 {[%emt 0:03:54]} 27. Bxf8 {[%emt 0:04:54]} Ng5 {[%emt 0:00:34]} 28. Qg2 {[%emt 0:01:39]} Bxf8 {[%emt 0:00:38]} 29. f4 {[%emt 0:00:21]} exf4 {[%emt 0:00:36]} 30. gxf4 {[%emt 0:00:05]} Nxh3+ {[%emt 0:00:23]} 31. Qxh3 {[%emt 0:00:06]} Rxd7 {[%emt 0:00:15]} 32. Qxd7 {[%emt 0:00:22]} Qa8 {[%emt 0:00:10]} 33. Qd5 {[%emt 0:00:42]} Qa3 {[%emt 0:01:03]} 34. Qb3 {[%emt 0:01:01]} Qa5 {[%emt 0:00:46]} 35. e5 {[%emt 0:03:02]} c4 {[%emt 0:00:49]} 36. Qxc4 {[%emt 0:00:22]} Bc5+ {[%emt 0:00:07]} 37. Kg2 {[%emt 0:00:15]} Qa8+ {[%emt 0:04:17]} 38. Qd5 {[%emt 0:03:08]} Qa4 {[%emt 0:00:14]} 39. e6 {[%emt 0:02:26]} fxe6 {[%emt 0:00:43]} 40. Qxe6+ {[%emt 0:05:42]} Kh7 {[%emt 0:01:03]} 41. Rf1 {[%emt 0:33:23]} Qc2+ {[%emt 0:30:13]} 42. Kh1 {[%emt 0:00:00]} Qd3 {[%emt 0:00:00]} 43. Kg2 {[%emt 0:00:00]} Qc2+ {[%emt 1:07:20]} 44. Kg3 {[%emt 0:02:26]} Qd3+ {[%emt 0:00:30]} 45. Rf3 Qd1 1/2-1/2